bitfinex/quotes_SOLUSD_20220118
["timestamp","ask_amount","ask_price","bid_price","bid_amount"]
[1642524967668,73.19,137.5,137.42,4.95616978]
[1642524967869,10.9168,137.48,137.42,4.95616978]
[1642524968073,38.00001373,137.47,137.43,6.0]
[1642524968270,38.25001373,137.47,137.42,2.04816978]
[1642524968470,35.34001373,137.47,137.43,6.0]
[1642524968772,35.34001373,137.47,137.41,8.04816978]
[1642524969071,46.25681373,137.47,137.39,4.95816978]
[1642524969269,2.91,137.46,137.39,2.04816978]
[1642524969468,2.91,137.46,137.36,3.6645823]
[1642524969671,0.25,137.45,137.36,3.6645823]
[1642524969899,2.911,137.44,137.36,3.6645823]
[1642524970096,39.017748,137.43,137.36,3.6645823]
[1642524970298,2.911,137.42,137.36,3.6645823]
[1642524970499,10.332,137.42,137.33,24.8958]
[1642524970698,0.25,137.41,137.34,6.0]
[1642524970899,2.911,137.4,137.33,6.0]
[1642524971100,10.9241,137.38,137.33,46.53811741]
[1642524971300,0.25,137.37,137.33,46.53811741]
[1642524972301,10.9241,137.38,137.33,57.46141741]
[1642524972503,10.9225,137.4,137.33,57.46141741]
[1642524972701,39.30552965,137.42,137.34,0.25]
[1642524972900,39.30552965,137.42,137.34,3.161]
[1642524973101,39.30552965,137.42,137.36,35.98230071]
[1642524973701,10.9215,137.41,137.36,35.98230071]
[1642524974101,0.25,137.4,137.36,35.98230071]
[1642524974400,0.25,137.4,137.35,16.9215]
[1642524975003,10.9221,137.4,137.35,6.0]
[1642524975203,3.161,137.39,137.35,6.0]
[1642524975400,3.161,137.39,137.34,6.0]
[1642524975401,47.97365988,137.39,137.34,6.0]
[1642524975601,47.97365988,137.39,137.33,45.0802847]
[1642524976600,58.89655988,137.39,137.33,56.0033847]
[1642524977001,58.89655988,137.39,137.33,16.9231]
[1642524977614,58.89655988,137.39,137.33,6.0]
[1642524977811,2.912,137.38,137.33,6.0]
[1642524978012,13.8357,137.38,137.33,44.78193871]
[1642524978211,0.25,137.37,137.33,44.78193871]
[1642524979411,0.25,137.37,137.33,55.70513871]
[1642524979610,58.64665988,137.39,137.33,55.70513871]
[1642524979811,47.72365988,137.39,137.33,55.70513871]
[1642524980215,2.912,137.41,137.33,55.70513871]
[1642524981311,11.1722,137.4,137.33,55.70513871]
[1642524981512,2.912,137.41,137.34,11.1718]
[1642524981713,2.911,137.42,137.34,11.1718]
[1642524981913,2.911,137.47,137.35,6.0]
[1642524982114,2.911,137.47,137.36,23.4719]
[1642524982414,48.30319254,137.46,137.37,37.35277386]
[1642524982612,2.91,137.45,137.37,43.35277386]
[1642524982815,2.91,137.45,137.38,0.25]
[1642524983512,2.91,137.45,137.38,11.1675]
[1642524983912,26.9614,137.48,137.39,2.91]
[1642524984111,24.0514,137.48,137.39,2.91]
[1642524984312,0.25,137.47,137.4,0.25]
[1642524984512,45.34153965,137.47,137.41,10.9157]
[1642524985115,45.34153965,137.47,137.4,2.91]
[1642524985317,2.91,137.46,137.37,6.0]
[1642524985715,0.25,137.45,137.39,10.9179]
[1642524989519,2.91,137.46,137.41,10.9164]
[1642524989719,2.91,137.47,137.42,0.25]
[1642524989919,2.91,137.5,137.42,0.25]
[1642524990319,43.43640932,137.5,137.42,39.59889102]
[1642524990725,54.35060932,137.5,137.43,10.9151]
[1642524990920,54.35060932,137.5,137.43,19.8231]
[1642524991720,11.1649,137.49,137.43,19.8231]
[1642524992120,11.1649,137.49,137.43,2.908]
[1642524992320,2.908,137.48,137.43,2.908]
[1642524992723,11.169,137.47,137.43,2.908]
[1642524992921,2.91,137.46,137.43,2.908]
[1642524993123,45.41883184,137.46,137.43,2.908]
[1642524993321,6.31439994,137.45,137.4,47.9975634]
[1642524994121,6.31439994,137.45,137.39,10.47]
[1642524994321,2.91,137.44,137.36,24.0276]
[1642524994521,2.91,137.44,137.37,6.0]
[1642524994721,0.25,137.43,137.37,6.0]
[1642524995222,0.25,137.43,137.37,42.34922528]
[1642524995422,11.1696,137.43,137.37,53.26942528]
[1642524995623,51.98380238,137.43,137.37,53.26942528]
[1642524996425,41.06420238,137.43,137.37,53.26942528]
[1642524997223,41.06420238,137.43,137.38,0.25]
[1642524997426,0.25,137.43,137.39,10.9186]
[1642524997824,13.8286,137.46,137.4,0.25]
[1642524998128,0.25,137.45,137.4,0.25]
[1642524998524,10.9176,137.46,137.4,0.25]
[1642524998924,10.9176,137.46,137.38,3.16]
[1642524999124,10.9176,137.46,137.4,44.79055189]
[1642524999525,10.9176,137.46,137.41,10.917]
[1642525000130,0.25,137.45,137.41,10.917]
[1642525001128,2.91,137.47,137.41,10.917]
[1642525001330,2.91,137.49,137.44,10.9138]
[1642525001530,2.908,137.53,137.45,6.0]
[1642525001730,4.10072217,137.54,137.45,3.158]
[1642525001930,2.908,137.53,137.45,3.158]
[1642525002130,34.86877191,137.52,137.46,40.47035756]
[1642525002330,34.86877191,137.52,137.45,0.25]
[1642525002729,0.25,137.51,137.45,3.158]
[1642525002930,0.25,137.51,137.45,0.25]
[1642525003333,0.25,137.51,137.45,46.63646327]
[1642525003532,0.25,137.51,137.47,10.9122]
[1642525004259,2.908,137.55,137.47,10.9122]
[1642525004861,47.88975875,137.54,137.48,47.49997409]
[1642525005063,13.8199,137.53,137.48,58.41147409]
[1642525005264,13.8199,137.53,137.48,10.9115]
[1642525005761,0.25,137.52,137.48,10.9115]
[1642525006362,11.1625,137.52,137.45,22.8979]
[1642525006561,37.6708652,137.51,137.45,0.25]
[1642525006761,37.6708652,137.51,137.43,43.62928311]
[1642525006762,37.6708652,137.51,137.43,2.908]
[1642525006963,0.25,137.5,137.43,2.908]
[1642525007163,3.158,137.5,137.44,0.25]
[1642525007362,0.25,137.5,137.44,0.25]
[1642525007967,0.25,137.5,137.43,44.80462223]
[1642525008163,0.25,137.5,137.43,41.89662223]
[1642525008362,0.25,137.5,137.44,6.0]
[1642525008566,11.164,137.5,137.44,16.9144]
[1642525009666,11.164,137.5,137.42,2.908]
[1642525009864,11.164,137.5,137.24,132.3263]
[1642525009865,2.908,137.49,137.43,6.0]
[1642525010067,10.9188,137.48,137.36,36.4138]
[1642525010267,41.45731316,137.46,137.37,0.25]
[1642525010466,49.44231316,137.46,137.37,0.25]
[1642525010665,0.25,137.45,137.37,0.25]
[1642525011070,0.25,137.45,137.36,62.63463859]
[1642525011472,10.9193,137.44,137.38,10.9193]
[1642525011669,0.25,137.45,137.39,35.08310695]
[1642525011870,0.25,137.45,137.39,41.08310695]
[1642525012070,41.45731316,137.46,137.39,35.08310695]
[1642525012470,41.45731316,137.46,137.4,6.25]
[1642525013574,41.45731316,137.46,137.4,17.1675]
[1642525013772,13.8256,137.48,137.4,17.1675]
[1642525013972,2.91,137.5,137.4,27.10036564]
[1642525014176,2.91,137.52,137.41,10.47]
[1642525014373,2.908,137.53,137.42,2.908]
[1642525014673,2.908,137.53,137.42,35.47666564]
[1642525014899,47.22499467,137.52,137.43,37.01003547]
[1642525015075,47.22499467,137.52,137.44,8.908]
[1642525015273,3.158,137.51,137.44,6.25]
[1642525015473,14.0713,137.51,137.45,10.9122]
[1642525018275,2.908,137.51,137.47,10.9116]
[1642525018475,2.908,137.54,137.47,10.9116]
[1642525018679,29.09822217,137.55,137.48,0.25]
[1642525018680,0.25,137.53,137.48,0.25]
[1642525019375,0.25,137.53,137.49,10.9096]
[1642525020578,0.25,137.53,137.5,6.0]
[1642525020775,0.25,137.53,137.51,10.9094]
[1642525021377,6.06439994,137.52,137.51,10.9094]
[1642525022403,6.06439994,137.52,137.5,16.91]
[1642525022578,6.06439994,137.52,137.5,10.91]
[1642525024082,2.908,137.56,137.5,10.91]
[1642525024380,2.908,137.58,137.53,10.9056]
[1642525024581,2.907,137.59,137.53,17.4676]
[1642525024780,2.907,137.59,137.54,43.59668041]
[1642525025184,2.907,137.59,137.55,6.25]
[1642525025382,10.21643901,137.62,137.55,6.25]
[1642525025582,4.10072217,137.62,137.56,2.907]
[1642525025781,0.59492217,137.62,137.58,28.0]
[1642525025985,6.11571684,137.65,137.59,2.906]
[1642525026184,6.11571684,137.65,137.59,74.02150646]
[1642525026381,6.11571684,137.65,137.59,75.70813665]
[1642525026580,6.11571684,137.65,137.59,86.60743665]
[1642525026782,2.906,137.69,137.59,86.60743665]
[1642525026981,2.906,137.7,137.59,86.60743665]
[1642525027181,37.14765616,137.69,137.59,86.60743665]
[1642525030220,0.25,137.68,137.59,86.60743665]
[1642525030425,3.156,137.68,137.59,86.60743665]
[1642525031623,0.25,137.68,137.59,31.96193019]
[1642525031827,0.25,137.68,137.59,30.2753]
[1642525032029,2.906,137.67,137.59,8.906]
[1642525032323,0.25,137.66,137.59,8.906]
[1642525032524,13.8094,137.65,137.59,8.906]
[1642525032724,38.48422292,137.64,137.59,8.906]
[1642525032927,2.906,137.63,137.59,8.906]
[1642525033324,0.25,137.62,137.59,8.906]
[1642525033525,6.06439994,137.61,137.59,8.906]
[1642525033727,6.06439994,137.61,137.59,2.906]
[1642525034626,45.39491166,137.6,137.56,10.47]
[1642525035028,44.39491166,137.6,137.57,6.0]
[1642525035527,44.39491166,137.6,137.54,10.47]
[1642525035528,6.06439994,137.59,137.56,6.0]
[1642525035729,6.06439994,137.59,137.54,10.47]
[1642525035730,6.06439994,137.59,137.55,16.9058]
[1642525035928,6.06439994,137.59,137.55,6.25]
[1642525036330,14.53139994,137.59,137.55,6.0]
[1642525036629,14.53139994,137.59,137.54,10.47]
[1642525037636,25.43869994,137.59,137.53,2.907]
[1642525037833,0.25,137.58,137.53,2.907]
[1642525038134,2.907,137.57,137.53,2.907]
[1642525038332,0.25,137.56,137.53,2.907]
[1642525038532,2.908,137.55,137.53,2.907]
[1642525038731,48.19837719,137.54,137.53,2.907]
[1642525040334,10.9104,137.56,137.53,2.907]
[1642525040534,2.908,137.58,137.53,2.907]
[1642525040734,2.907,137.6,137.5,2.907]
[1642525040934,2.908,137.63,137.5,19.627]
[1642525041169,0.25,137.59,137.51,6.0]
[1642525041539,0.25,137.59,137.52,11.1583]
[1642525041734,0.25,137.59,137.52,10.9083]
[1642525041935,11.1575,137.59,137.49,1.68663019]
[1642525042135,112.4616,137.61,137.48,13.377]
[1642525042136,76.098,137.58,137.48,2.907]
[1642525042534,76.098,137.58,137.48,13.8184]
[1642525042535,0.25,137.57,137.48,13.8184]
[1642525042734,41.91290886,137.55,137.47,22.9703]
[1642525042935,10.9121,137.53,137.48,6.0]
[1642525043136,45.09700034,137.52,137.47,6.0]
[1642525043637,45.09700034,137.52,137.46,2.908]
[1642525043837,45.09700034,137.52,137.47,6.0]
[1642525044040,45.09700034,137.52,137.46,2.908]
[1642525044241,56.00990034,137.52,137.46,2.908]
[1642525044440,3.158,137.51,137.41,27.98083019]
[1642525044638,3.158,137.51,137.42,2.908]
[1642525044840,3.158,137.51,137.37,10.47]
[1642525045038,22.5214,137.5,137.38,2.91]
[1642525045239,3.16,137.49,137.38,2.91]
[1642525045539,42.84273695,137.45,137.38,2.91]
[1642525045738,3.16,137.44,137.37,10.47]
[1642525046037,3.16,137.44,137.38,0.25]
[1642525046237,3.16,137.44,137.37,10.47]
[1642525046438,10.9203,137.43,137.36,13.8308]
[1642525046840,0.25,137.42,137.36,13.8308]
[1642525047238,38.55757711,137.42,137.36,13.8308]
[1642525047437,38.55757711,137.42,137.36,2.91]
[1642525048038,2.911,137.41,137.36,2.91]
[1642525048237,0.25,137.4,137.36,2.91]
[1642525048439,0.25,137.4,137.35,10.9215]
[1642525050440,2.911,137.41,137.36,1.6866303]
[1642525050642,38.30757711,137.42,137.37,10.9196]
[1642525051644,38.30757711,137.42,137.37,12.6062303]
[1642525051947,38.30757711,137.42,137.38,6.25]
[1642525052146,38.30757711,137.42,137.37,12.6062303]
[1642525052347,38.30757711,137.42,137.37,10.9196]
[1642525052546,38.30757711,137.42,137.35,4.5976303]
[1642525052547,38.30757711,137.42,137.36,10.9207]
[1642525053349,38.30757711,137.42,137.37,0.25]
[1642525053547,0.25,137.41,137.36,10.9207]
[1642525054748,3.161,137.41,137.36,10.9207]
[1642525055151,2.911,137.41,137.36,10.9207]
[1642525055350,2.911,137.41,137.37,11.17]
[1642525055550,2.911,137.46,137.37,11.17]
[1642525055748,2.911,137.46,137.38,1.6866303]
[1642525055950,25.4159,137.49,137.39,2.91]
[1642525056177,2.91,137.5,137.4,6.0]
[1642525056374,47.5074674,137.49,137.41,42.90407081]
[1642525056574,47.5074674,137.49,137.43,10.914]
[1642525057178,0.25,137.48,137.41,2.91]
[1642525057375,2.91,137.47,137.39,2.91]
[1642525057577,2.91,137.47,137.37,23.0115]
[1642525057775,0.25,137.46,137.39,0.25]
[1642525057976,2.91,137.45,137.39,10.9185]
[1642525058276,43.30419534,137.44,137.39,10.9185]
[1642525061877,2.91,137.47,137.4,43.58616635]
[1642525062079,2.91,137.5,137.42,10.9154]
[1642525062280,2.908,137.52,137.43,0.25]
[1642525062477,2.908,137.52,137.41,2.91]
[1642525062677,2.908,137.52,137.42,0.25]
[1642525062877,38.84467875,137.51,137.42,0.25]
[1642525063078,2.908,137.5,137.42,0.25]
[1642525063279,3.158,137.5,137.42,0.25]
[1642525063479,14.0727,137.5,137.44,10.9142]
[1642525064285,14.0727,137.5,137.41,2.91]
[1642525064485,14.0727,137.5,137.41,10.917]
[1642525064683,14.0727,137.5,137.4,2.91]
[1642525064887,14.0727,137.5,137.38,23.7157]
[1642525065086,73.19,137.49,137.38,2.91]
[1642525065283,10.9189,137.46,137.38,2.91]
[1642525065483,34.93021993,137.45,137.38,13.8294]
[1642525065687,2.91,137.44,137.35,10.47]
[1642525065886,76.1,137.44,137.37,6.0]
[1642525066083,0.25,137.43,137.36,6.0]
[1642525066284,13.832,137.42,137.36,6.0]
[1642525066486,37.37602588,137.41,137.33,26.8029]
[1642525066684,37.62602588,137.41,137.35,10.9218]
[1642525066883,37.62602588,137.41,137.34,0.25]
[1642525067085,37.62602588,137.41,137.33,6.25]
[1642525067285,44.48102588,137.41,137.33,6.25]
[1642525067883,44.48102588,137.41,137.33,6.0]
[1642525068087,55.40332588,137.41,137.33,16.9234]
[1642525068286,55.40332588,137.41,137.33,6.0]
[1642525068489,2.911,137.4,137.33,6.0]
[1642525068686,0.25,137.39,137.33,6.0]
[1642525069387,10.9246,137.38,137.33,6.0]
[1642525069586,0.25,137.39,137.33,6.0]
[1642525069788,2.912,137.43,137.34,0.25]
[1642525070187,0.25,137.42,137.34,0.25]
[1642525070487,2.912,137.43,137.35,10.9219]
[1642525070691,47.1382285,137.42,137.36,51.01397964]
[1642525070887,47.1382285,137.42,137.36,57.01397964]
[1642525071690,47.1382285,137.42,137.37,10.9192]
[1642525072090,47.1382285,137.42,137.38,6.0]
[1642525072691,47.1382285,137.42,137.35,6.0]
[1642525072891,58.0590285,137.42,137.35,17.1719]
[1642525073091,0.25,137.41,137.35,17.1719]
[1642525074192,0.25,137.41,137.35,56.09033787]
[1642525074393,47.1382285,137.42,137.35,56.09033787]
[1642525074592,47.1382285,137.42,137.36,2.911]
[1642525074790,47.1382285,137.42,137.37,11.1695]
[1642525074996,47.1382285,137.42,137.38,6.0]
[1642525075193,47.1382285,137.42,137.38,6.25]
[1642525075592,47.1382285,137.42,137.38,0.25]
[1642525075792,47.1382285,137.42,137.39,16.9189]
[1642525075992,47.1382285,137.42,137.37,0.25]
[1642525076195,0.25,137.41,137.36,6.0]
[1642525076392,11.1713,137.41,137.36,6.0]
[1642525076595,3.161,137.41,137.34,6.0]
[1642525076796,3.161,137.41,137.34,6.25]
[1642525076997,2.911,137.41,137.34,6.25]
[1642525077501,2.911,137.41,137.35,12.61326975]
[1642525077696,47.1382285,137.42,137.36,39.28944959]
[1642525077898,47.1382285,137.42,137.36,45.28944959]
[1642525078298,47.1382285,137.42,137.37,10.9191]
[1642525078498,47.1382285,137.42,137.38,6.0]
[1642525079200,47.1382285,137.42,137.37,6.0]
[1642525079800,47.1382285,137.42,137.36,6.25]
[1642525080201,58.0588285,137.42,137.36,6.25]
[1642525080401,58.0588285,137.42,137.36,0.25]
[1642525081205,47.1382285,137.42,137.36,0.25]
[1642525081404,47.1382285,137.42,137.36,11.1714]
[1642525081604,47.1382285,137.42,137.37,6.0]
[1642525082306,47.1382285,137.42,137.37,10.9204]
[1642525082537,47.1382285,137.42,137.38,6.0]
[1642525082734,58.0589285,137.42,137.38,6.0]
[1642525083132,58.0589285,137.42,137.36,6.25]
[1642525083332,58.0589285,137.42,137.36,11.1712]
[1642525083534,58.0589285,137.42,137.37,6.0]
[1642525083732,3.161,137.41,137.35,2.911]
[1642525083934,10.9242,137.4,137.35,2.911]
[1642525084137,124.48071056,137.39,137.36,6.0]
[1642525084333,124.73071056,137.39,137.35,2.911]
[1642525084535,26.0,137.38,137.28,34.5832]
[1642525084735,76.352,137.37,137.25,23.5422]
[1642525084935,76.352,137.37,137.25,34.0122]
[1642525084936,10.9279,137.34,137.25,34.0122]
[1642525085138,2.912,137.33,137.25,36.9242]
[1642525085334,34.86032358,137.32,137.25,10.47]
[1642525085535,2.912,137.31,137.25,10.9299]
[1642525085736,8.569,137.31,137.25,10.9299]
[1642525086636,19.4987,137.31,137.26,6.0]
[1642525086839,19.4987,137.31,137.26,46.75631787]
[1642525087237,10.9297,137.31,137.26,57.68561787]
[1642525087439,2.912,137.33,137.26,57.68561787]
[1642525087640,10.9283,137.33,137.27,0.25]
[1642525087837,2.912,137.35,137.27,0.25]
[1642525088238,38.2469418,137.35,137.27,0.25]
[1642525089039,111.4369418,137.35,137.27,0.25]
[1642525089239,10.9269,137.34,137.27,10.9285]
[1642525089440,2.912,137.33,137.26,6.0]
[1642525089640,2.88538245,137.33,137.24,6.0]
[1642525089841,76.07538245,137.33,137.24,6.25]
[1642525090042,76.07538245,137.33,137.24,6.0]
[1642525090244,47.02696803,137.32,137.25,10.9303]
[1642525090542,2.912,137.31,137.26,6.0]
[1642525090743,3.162,137.31,137.26,6.0]
[1642525091343,3.162,137.31,137.26,5.5]
[1642525091545,10.93,137.3,137.26,5.5]
[1642525092547,0.25,137.29,137.26,5.5]
[1642525092752,10.93,137.3,137.26,5.5]
[1642525094544,36.95712193,137.29,137.26,5.5]
[1642525094746,6.06439994,137.28,137.26,5.5]
[1642525096548,6.06439994,137.28,137.27,6.0]
[1642525096748,6.31439994,137.28,137.24,16.9305]
[1642525096947,6.06439994,137.28,137.24,16.9305]
[1642525098849,76.102,137.32,137.25,0.25]
[1642525098850,10.9301,137.3,137.25,0.25]
[1642525099050,10.9301,137.3,137.25,11.1796]
[1642525099449,10.9301,137.3,137.26,6.0]
[1642525099850,10.9301,137.3,137.26,50.99978231]
[1642525100653,10.9301,137.3,137.26,6.0]
[1642525101652,0.25,137.29,137.26,6.0]
[1642525103060,3.03219997,137.28,137.26,6.0]
[1642525103261,0.25,137.29,137.26,6.0]
[1642525104159,13.8421,137.3,137.26,6.0]
[1642525104360,73.19,137.34,137.26,62.07234153]
[1642525104560,39.3421,137.35,137.27,6.0]
[1642525104960,2.912,137.35,137.27,6.0]
[1642525105463,40.59253877,137.34,137.27,6.0]
[1642525105663,13.8397,137.33,137.27,16.9279]
[1642525106062,0.25,137.32,137.27,16.9279]
[1642525106663,0.25,137.32,137.27,6.0]
[1642525106865,11.1787,137.32,137.27,6.0]
[1642525107064,35.99390674,137.31,137.25,6.0]
[1642525107265,35.99390674,137.31,137.25,6.25]
[1642525107472,0.25,137.3,137.25,6.25]
[1642525107865,0.25,137.3,137.25,0.25]
[1642525108689,2.912,137.32,137.25,11.1802]
[1642525108889,2.912,137.33,137.25,11.1802]
[1642525109089,2.912,137.35,137.26,6.0]
[1642525109292,2.912,137.35,137.27,0.25]
[1642525109689,38.81586989,137.35,137.27,39.57042561]
[1642525110093,38.81586989,137.35,137.28,6.0]
[1642525110291,0.25,137.34,137.28,6.0]
[1642525110491,2.912,137.33,137.28,16.9264]
[1642525110693,0.25,137.32,137.28,10.9264]
[1642525110893,0.25,137.32,137.29,6.0]
[1642525111095,2.912,137.34,137.29,6.0]
[1642525111293,0.25,137.32,137.29,6.0]
[1642525112193,0.25,137.33,137.29,16.927]
[1642525112998,2.912,137.34,137.29,16.927]
[1642525113197,2.912,137.35,137.29,16.927]
[1642525113897,49.28582327,137.34,137.29,16.927]
[1642525114298,0.25,137.33,137.29,16.927]
[1642525115399,3.162,137.33,137.29,16.927]
[1642525116000,3.162,137.33,137.29,6.0]
[1642525116301,14.0896,137.33,137.28,10.9276]
[1642525117100,3.162,137.33,137.28,10.9276]
[1642525117501,3.162,137.33,137.29,6.0]
[1642525117702,0.25,137.33,137.29,6.0]
[1642525117902,0.25,137.33,137.29,16.927]
[1642525118100,0.25,137.33,137.3,6.0]
[1642525118698,6.06439994,137.32,137.3,6.0]
[1642525118901,6.06439994,137.32,137.26,36.85818741]
[1642525119099,39.92612892,137.31,137.27,6.0]
[1642525119300,39.92612892,137.31,137.28,0.25]
[1642525119700,39.92612892,137.31,137.26,6.0]
[1642525120602,0.25,137.3,137.26,10.929]
[1642525121102,0.25,137.3,137.27,6.0]
[1642525121704,6.06439994,137.29,137.27,6.0]
[1642525123507,6.06439994,137.29,137.26,44.4123182]
[1642525123706,6.06439994,137.29,137.26,44.6623182]
[1642525124109,6.06439994,137.29,137.26,44.4123182]
[1642525124307,6.06439994,137.29,137.26,16.9296]
[1642525124907,6.06439994,137.29,137.26,6.0]
[1642525125110,6.06439994,137.29,137.24,6.0]
[1642525125307,6.06439994,137.29,137.24,6.25]
[1642525125508,6.06439994,137.29,137.25,10.9303]
[1642525125709,6.06439994,137.29,137.26,0.25]
[1642525125909,6.06439994,137.29,137.26,6.25]
[1642525126614,6.06439994,137.29,137.26,50.36899746]
[1642525127513,6.06439994,137.29,137.27,10.9272]
[1642525127913,6.06439994,137.29,137.28,6.0]
[1642525128113,75.14918325,137.35,137.28,6.0]
[1642525128114,1.95918325,137.35,137.28,6.25]
[1642525128314,1.95918325,137.35,137.28,9.162]
[1642525128917,1.95918325,137.35,137.29,45.0307372]
[1642525129117,1.95918325,137.35,137.3,6.0]
[1642525129316,1.95918325,137.35,137.31,10.9242]
[1642525129516,1.95918325,137.35,137.32,6.0]
[1642525129917,4.87118325,137.37,137.32,6.0]
[1642525130317,50.48127931,137.37,137.32,43.16382392]
[1642525130521,50.48127931,137.37,137.33,6.0]
[1642525130720,47.56927931,137.37,137.3,6.25]
[1642525130920,45.61009606,137.37,137.32,10.9244]
[1642525131125,15.79548325,137.38,137.33,6.0]
[1642525131322,15.79548325,137.38,137.33,6.25]
[1642525131520,15.79548325,137.38,137.31,6.0]
[1642525131721,15.79548325,137.38,137.32,0.25]
[1642525131918,13.8363,137.38,137.32,0.25]
[1642525132122,54.19092849,137.38,137.32,0.25]
[1642525132322,54.19092849,137.38,137.33,10.9239]
[1642525132522,54.19092849,137.38,137.34,6.0]
[1642525133320,0.25,137.37,137.32,6.0]
[1642525133622,10.9253,137.36,137.32,6.0]
[1642525133821,2.912,137.36,137.31,6.0]
[1642525134021,2.912,137.36,137.31,6.25]
[1642525134520,2.912,137.36,137.32,10.9248]
[1642525134950,2.912,137.36,137.33,6.0]
[1642525135149,35.55036462,137.35,137.33,6.0]
[1642525135347,41.61476456,137.35,137.33,6.0]
[1642525136149,6.06439994,137.35,137.32,10.9248]
[1642525136349,3.03219997,137.35,137.32,10.9248]
[1642525136550,3.03219997,137.35,137.33,6.25]
[1642525136752,13.836,137.38,137.33,17.1737]
[1642525136950,13.836,137.38,137.33,11.1737]
[1642525137152,2.912,137.38,137.34,6.0]
[1642525137452,2.912,137.39,137.34,6.0]
[1642525137651,2.912,137.39,137.35,0.25]
[1642525137854,12.88128325,137.4,137.35,11.1723]
[1642525138053,12.88128325,137.4,137.35,10.9223]
[1642525138254,10.9221,137.4,137.36,6.0]
[1642525138453,2.911,137.39,137.36,6.0]
[1642525138655,6.06439994,137.38,137.36,6.0]
[1642525140454,6.06439994,137.38,137.34,10.9231]
[1642525140455,6.06439994,137.38,137.34,16.9231]
[1642525141862,1.95918325,137.41,137.35,2.912]
[1642525142067,1.95918325,137.41,137.36,16.9196]
[1642525142256,1.95918325,137.41,137.37,3.161]
[1642525142657,1.95918325,137.41,137.38,6.0]
[1642525142855,1.95918325,137.41,137.38,48.86723215]
[1642525143056,1.95918325,137.41,137.4,10.9174]
[1642525143257,2.911,137.46,137.4,11.1674]
[1642525143456,12.87688325,137.47,137.4,17.1674]
[1642525143657,12.87688325,137.47,137.41,6.0]
[1642525143856,2.91,137.46,137.41,6.0]
[1642525144059,45.20189416,137.45,137.4,16.9184]
[1642525144256,45.20189416,137.45,137.4,10.9184]
[1642525144459,45.20189416,137.45,137.41,6.0]
[1642525144656,3.16,137.44,137.41,6.0]
[1642525145558,2.91,137.44,137.41,6.0]
[1642525145959,2.91,137.45,137.41,6.0]
[1642525146160,1.95918325,137.46,137.41,6.0]
[1642525146562,12.87718325,137.46,137.41,6.0]
[1642525146761,0.25,137.45,137.41,6.0]
[1642525146966,39.49227356,137.45,137.41,6.0]
[1642525147165,2.91,137.45,137.41,6.0]
[1642525147565,2.91,137.45,137.41,16.9176]
[1642525147768,15.78638325,137.47,137.41,10.9176]
[1642525148064,15.78638325,137.47,137.39,8.91]
[1642525148065,4.86918325,137.47,137.42,6.0]
[1642525148270,0.25,137.46,137.42,6.0]
[1642525149567,0.25,137.46,137.42,16.9163]
[1642525150168,0.25,137.46,137.42,6.0]
[1642525150373,2.91,137.45,137.42,6.0]